bitfinex/quotes_BTCUSD_20220202
["timestamp","ask_amount","ask_price","bid_price","bid_amount"]
[1643761633404,0.00021437,38806.0,38805.0,0.63166718]
[1643761633606,0.00021437,38806.0,38805.0,0.85635673]
[1643761634104,0.00021437,38806.0,38805.0,0.95635673]
[1643761635405,0.00021437,38806.0,38805.0,1.00805673]
[1643761638150,0.00021437,38806.0,38805.0,2.42505673]
[1643761638449,0.0014624,38807.0,38806.0,0.514387]
[1643761638646,0.0014624,38807.0,38806.0,1.25211129]
[1643761638845,0.0014624,38807.0,38806.0,1.35211129]
[1643761639044,0.0014624,38807.0,38806.0,2.71911129]
[1643761639291,0.002,38813.0,38806.0,2.71911129]
[1643761639292,0.001,38816.0,38807.0,0.76341138]
[1643761639493,0.001,38816.0,38815.0,0.29744911]
[1643761639792,0.001,38816.0,38815.0,0.7744206]
[1643761640191,0.001,38816.0,38815.0,0.57697149]
[1643761640394,0.001,38816.0,38815.0,0.46517731]
[1643761640693,0.001,38816.0,38815.0,0.22966549]
[1643761641095,0.001,38816.0,38815.0,0.45005965]
[1643761641293,0.001,38816.0,38815.0,1.15401058]
[1643761641693,0.001,38816.0,38815.0,0.93361642]
[1643761643341,0.001,38816.0,38815.0,0.93354138]
[1643761644242,0.001,38816.0,38815.0,0.12959045]
[1643761644441,0.001,38816.0,38814.0,0.34551827]
[1643761644843,0.001,38816.0,38815.0,0.447306]
[1643761645644,0.001,38816.0,38815.0,0.68431882]
[1643761646347,0.001,38816.0,38815.0,0.447306]
[1643761646545,0.001,38816.0,38815.0,0.1]
[1643761648393,0.001,38816.0,38814.0,0.34551827]
[1643761649000,0.001,38816.0,38814.0,0.064381]
[1643761650096,0.10220079,38815.0,38814.0,0.064381]
[1643761650552,0.001,38816.0,38814.0,0.064381]
[1643761656894,0.001,38816.0,38813.0,0.01]
[1643761657594,0.00246353,38816.0,38813.0,0.01]
[1643761657796,0.00246353,38816.0,38806.0,0.24874798]
[1643761658053,0.20451868,38811.0,38805.0,0.26830965]
[1643761658447,0.20451868,38811.0,38807.0,0.064406]
[1643761658848,0.00146365,38810.0,38807.0,0.074406]
[1643761659647,0.06440558,38814.0,38807.0,0.074406]
[1643761659849,0.06440558,38814.0,38807.0,0.064406]
[1643761660049,0.00146364,38810.0,38807.0,0.064406]
[1643761660750,0.26127007,38810.0,38806.0,0.26879717]
[1643761660950,0.25980643,38810.0,38806.0,0.26879717]
[1643761661150,0.26127007,38810.0,38806.0,0.26879717]
[1643761661351,0.26127007,38810.0,38806.0,0.33320417]
[1643761662091,0.25980643,38810.0,38806.0,0.33320417]
[1643761662291,0.26127008,38810.0,38806.0,0.33320417]
[1643761662691,0.26127008,38810.0,38806.0,0.32320417]
[1643761663091,0.00146365,38810.0,38806.0,0.32320417]
[1643761663293,0.06440558,38814.0,38806.0,0.32320417]
[1643761663491,0.31270681,38815.0,38806.0,0.32320417]
[1643761663492,0.00146365,38810.0,38806.0,0.32320417]
[1643761664595,0.2479765,38813.0,38806.0,0.32320417]
[1643761664792,0.00146365,38810.0,38806.0,0.32320417]
[1643761665643,0.2479765,38813.0,38806.0,0.32320417]
[1643761666045,0.00146365,38810.0,38806.0,0.32320417]
[1643761666842,0.2479765,38813.0,38806.0,0.32320417]
[1643761667043,0.001,38816.0,38806.0,0.32320417]
[1643761667247,0.00146365,38810.0,38809.0,0.314396]
[1643761667444,0.00146365,38810.0,38809.0,0.661702]
[1643761668146,0.001,38816.0,38809.0,0.661702]
[1643761668345,0.001,38816.0,38813.0,0.28456623]
[1643761668544,0.001,38816.0,38814.0,0.064388]
[1643761669689,0.001,38816.0,38814.0,0.32250636]
[1643761670493,0.001,38816.0,38815.0,0.28297043]
[1643761671095,0.001,38816.0,38814.0,0.32250636]
[1643761672400,0.001,38816.0,38814.0,0.064388]
[1643761679093,0.001,38816.0,38815.0,0.347306]
[1643761679493,0.001,38816.0,38815.0,0.447306]
[1643761682144,0.001,38816.0,38815.0,0.1]
[1643761682342,0.001,38816.0,38814.0,0.24560546]
[1643761682544,0.001,38816.0,38815.0,0.347306]
[1643761682744,0.001,38816.0,38815.0,0.447306]
[1643761684990,0.00093126,38816.0,38815.0,0.447306]
[1643761685690,0.0006956,38816.0,38815.0,0.447306]
[1643761688942,0.00061801,38816.0,38815.0,0.447306]
[1643761689544,0.001,38820.0,38815.0,0.447306]
[1643761689545,0.02033302,38821.0,38818.0,0.45]
[1643761689746,0.02033302,38821.0,38819.0,0.499006]
[1643761689943,0.01,38822.0,38820.0,0.43518985]
[1643761690144,0.01,38822.0,38821.0,0.399006]
[1643761690342,0.01,38822.0,38821.0,0.499006]
[1643761690543,0.01,38822.0,38821.0,1.07412565]
[1643761690745,0.001,38825.0,38821.0,1.07412565]
[1643761690943,0.00077864,38823.0,38821.0,1.07412565]
[1643761691145,0.00151672,38823.0,38822.0,0.67874011]
[1643761691347,0.00151672,38823.0,38822.0,1.12604611]
[1643761692194,0.00077864,38823.0,38822.0,1.17774611]
[1643761692595,0.00077864,38823.0,38822.0,0.72774611]
[1643761693795,0.00077864,38823.0,38822.0,2.09474611]
[1643761694797,0.00077864,38823.0,38822.0,0.72774611]
[1643761696454,0.00055605,38823.0,38822.0,0.72774611]
[1643761696955,0.00047774,38823.0,38822.0,0.72774611]
[1643761697355,0.00047774,38823.0,38822.0,0.499006]
[1643761697655,0.00047774,38823.0,38822.0,0.347306]
[1643761698755,0.00047774,38823.0,38822.0,0.447306]
[1643761700796,0.00047774,38823.0,38822.0,0.66682236]
[1643761701197,0.00047774,38823.0,38822.0,0.447306]
[1643761701794,0.00025358,38823.0,38822.0,0.6710824]
[1643761703044,0.00025358,38823.0,38822.0,0.447306]
[1643761705447,0.00025358,38823.0,38821.0,0.064365]
[1643761705646,0.00025358,38823.0,38820.0,0.199719]
[1643761706449,0.20186371,38822.0,38820.0,0.199719]
[1643761706644,0.26625966,38822.0,38820.0,0.199719]
[1643761707089,0.33065566,38822.0,38820.0,0.199719]
[1643761707491,0.33065566,38822.0,38819.0,0.01]
[1643761707691,0.33065566,38822.0,38815.0,0.128772]
[1643761707692,0.19180178,38821.0,38815.0,0.128772]
[1643761707891,0.19180178,38821.0,38813.0,0.1227]
[1643761707892,0.06439706,38820.0,38813.0,0.1227]
[1643761708089,0.06439706,38820.0,38805.0,2.55759213]
[1643761708090,0.064401,38818.0,38807.0,0.7584]
[1643761708292,0.064401,38818.0,38807.0,0.3631]
[1643761708293,0.064404,38816.0,38807.0,0.3631]
[1643761708490,0.20460457,38809.0,38805.0,0.00585951]
[1643761708690,0.18493769,38808.0,38806.0,0.128804]
[1643761708891,0.20460457,38809.0,38806.0,0.4088006]
[1643761709094,0.06440437,38814.0,38806.0,0.4088006]
[1643761709290,0.19012665,38813.0,38807.0,0.1]
[1643761709691,0.23645227,38812.0,38808.0,0.064406]
[1643761710645,0.19009328,38811.0,38807.0,0.1]
[1643761712445,0.19009328,38811.0,38806.0,0.3444056]
[1643761715910,0.18970532,38811.0,38806.0,0.3444056]
[1643761716510,0.23645227,38812.0,38806.0,0.3444056]
[1643761718152,0.18879459,38811.0,38806.0,0.3444056]
[1643761718950,0.23645227,38812.0,38806.0,0.3444056]
[1643761719151,0.26726676,38813.0,38806.0,0.3444056]
[1643761719152,0.2028585,38813.0,38806.0,0.3444056]
[1643761719355,0.01,38813.0,38806.0,0.3444056]
[1643761720253,0.24818783,38813.0,38806.0,0.3444056]
[1643761720454,0.01,38813.0,38809.0,0.10029135]
[1643761720652,0.01,38813.0,38810.0,0.064401]
[1643761720852,0.1233,38818.0,38810.0,0.064401]
[1643761721455,0.23341752,38820.0,38814.0,0.27575896]
[1643761721654,0.23341752,38820.0,38815.0,0.064393]
[1643761721905,0.24341752,38820.0,38815.0,0.164393]
[1643761722302,0.24341752,38820.0,38819.0,1.75169489]
[1643761722703,0.43332309,38820.0,38819.0,1.75169489]
[1643761722904,0.42332309,38820.0,38819.0,1.75169489]
[1643761723104,0.23341752,38820.0,38817.0,0.01]
[1643761723306,0.088463,38819.0,38817.0,0.01]
[1643761723508,0.43854748,38818.0,38817.0,0.01]
[1643761723905,0.43854748,38818.0,38813.0,0.24719477]
[1643761724706,0.43854748,38818.0,38813.0,0.01]
[1643761725551,0.15433094,38819.0,38813.0,0.01]
[1643761725746,0.15286309,38819.0,38813.0,0.01]
[1643761726046,0.08993085,38819.0,38814.0,0.064401]
[1643761726448,0.00146785,38819.0,38814.0,0.064401]
[1643761727151,0.00146787,38819.0,38814.0,0.064401]
[1643761728151,0.24341752,38820.0,38814.0,0.064401]
[1643761728349,0.00146787,38819.0,38814.0,0.064401]
[1643761728550,0.00146787,38819.0,38818.0,0.064394]
[1643761729407,0.00025358,38823.0,38818.0,0.064394]
[1643761729711,0.00138338,38820.0,38818.0,0.064394]
[1643761730607,0.22023302,38821.0,38818.0,0.064394]
[1643761731207,0.22023302,38821.0,38819.0,0.2624]
[1643761733548,0.49679409,38820.0,38819.0,0.2624]
[1643761733744,0.54679409,38820.0,38819.0,0.2624]
[1643761734142,0.59849409,38820.0,38819.0,0.2624]
[1643761734544,0.79849409,38820.0,38819.0,0.2624]
[1643761735345,0.99849409,38820.0,38819.0,0.2624]
[1643761735544,0.89849409,38820.0,38819.0,0.2624]
[1643761736146,0.45,38819.0,38813.0,0.01]
[1643761736346,0.3009825,38816.0,38813.0,0.01]
[1643761736546,0.22291172,38815.0,38813.0,0.01]
[1643761736803,0.22291172,38815.0,38806.0,0.00586117]
[1643761737003,0.27461172,38815.0,38806.0,0.00586117]
[1643761737406,0.21697079,38811.0,38806.0,0.00586117]
[1643761737611,0.09380028,38807.0,38806.0,0.00586117]
[1643761737807,0.09380028,38807.0,38804.0,0.074412]
[1643761738007,0.09380028,38807.0,38804.0,0.01]
[1643761738008,0.28629624,38807.0,38804.0,0.01]
[1643761738807,0.45583839,38805.0,38804.0,0.01]
[1643761739007,0.064431,38804.0,38797.0,0.01]
[1643761739207,0.23033553,38803.0,38798.0,0.00732794]
[1643761739808,0.23033553,38803.0,38799.0,0.01946743]
[1643761740212,0.23033553,38803.0,38792.0,0.06443]
[1643761740411,0.0815213,38798.0,38793.0,0.30293399]
[1643761741046,0.27040187,38798.0,38794.0,0.01]
[1643761741244,0.27040984,38798.0,38794.0,0.01]
[1643761741642,0.27040984,38798.0,38794.0,0.01146573]
[1643761742243,0.27040984,38798.0,38794.0,0.02146573]
[1643761742541,0.27040984,38798.0,38794.0,0.02]
[1643761742746,0.27040984,38798.0,38794.0,0.02146573]
[1643761743843,0.27040984,38798.0,38794.0,0.02]
[1643761744042,0.27040984,38798.0,38794.0,0.02146573]
[1643761744497,0.0815213,38798.0,38794.0,0.02146573]
[1643761744698,0.0815213,38798.0,38794.0,0.08589373]
[1643761744898,0.0815213,38798.0,38794.0,0.084428]
[1643761745099,0.01,38799.0,38794.0,0.08589373]
[1643761745302,0.01,38799.0,38794.0,0.22589373]
[1643761745899,0.01,38799.0,38794.0,0.27589373]
[1643761746100,0.01,38799.0,38794.0,0.224428]
[1643761746298,0.01,38799.0,38795.0,0.00146571]
[1643761746901,0.12886035,38801.0,38795.0,0.00146571]
[1643761747300,0.064432,38801.0,38794.0,0.01]
[1643761747602,0.09608087,38795.0,38794.0,0.01]
[1643761748045,0.09608087,38795.0,38792.0,0.064432]
[1643761748843,0.09608087,38795.0,38792.0,0.06589782]
[1643761749242,0.09608087,38795.0,38792.0,0.06089782]
[1643761749844,0.09608087,38795.0,38792.0,0.059432]
[1643761750043,0.09608087,38795.0,38792.0,0.06089782]
[1643761751042,0.09608087,38795.0,38792.0,0.059432]
[1643761751245,0.09608087,38795.0,38792.0,0.06089782]
[1643761751645,0.19203221,38794.0,38792.0,0.06089782]
[1643761752097,0.09608087,38795.0,38791.0,0.01]
[1643761752298,0.09608087,38795.0,38791.0,0.01146584]
[1643761752699,0.35055735,38795.0,38791.0,0.01146584]
[1643761753102,0.09608087,38795.0,38791.0,0.01146584]
[1643761753401,0.09608087,38795.0,38791.0,0.01]
[1643761753599,0.09608087,38795.0,38791.0,0.01146584]
[1643761753803,0.09608087,38795.0,38791.0,0.00646584]
[1643761754001,0.47291901,38795.0,38791.0,0.00646584]
[1643761754202,0.21642633,38794.0,38791.0,0.00646584]
[1643761754403,0.33152468,38794.0,38791.0,0.00646584]
[1643761754603,0.33152468,38794.0,38791.0,0.005]
[1643761754801,0.33152468,38794.0,38791.0,0.00146586]
[1643761755402,0.064449,38793.0,38791.0,0.00146586]
[1643761755644,0.41420651,38792.0,38791.0,0.00146586]
[1643761755841,0.47865676,38792.0,38790.0,0.005]
[1643761756044,0.28352695,38791.0,38790.0,0.00646588]
[1643761756842,0.06445025,38792.0,38790.0,0.00146588]
[1643761757043,0.29188074,38793.0,38788.0,0.005]
[1643761757044,0.00584027,38793.0,38788.0,0.005]
[1643761757245,0.00584027,38793.0,38789.0,0.00146593]
[1643761757844,0.22651427,38791.0,38789.0,0.00646593]
[1643761758247,0.22651427,38791.0,38789.0,0.005]
[1643761758846,0.22651427,38791.0,38788.0,0.00646595]
[1643761759400,0.22651427,38791.0,38788.0,0.005]
[1643761759601,0.22651427,38791.0,38788.0,0.00646597]
[1643761759801,0.22651427,38791.0,38788.0,0.00146597]
[1643761760205,0.09701609,38789.0,38788.0,0.00146597]
[1643761760503,0.09701609,38789.0,38787.0,0.005]
[1643761760701,0.09701609,38789.0,38787.0,0.00146601]
[1643761760702,0.16146919,38789.0,38787.0,0.00146601]
[1643761760906,0.57168111,38788.0,38787.0,0.00146601]
[1643761761702,0.57168111,38788.0,38782.0,0.0011]
[1643761761905,0.64077593,38788.0,38786.0,0.00146605]
[1643761762105,0.45,38786.0,38785.0,0.00316605]
[1643761762305,0.76845579,38786.0,38782.0,6.05e-06]
[1643761762503,0.76845579,38786.0,38780.0,0.00586507]
[1643761762504,0.45,38785.0,38780.0,0.00586507]
[1643761762703,0.24026852,38784.0,38780.0,0.00586507]
[1643761762904,0.29736828,38782.0,38779.0,0.0011]
[1643761763147,0.07647694,38781.0,38779.0,0.0011]
[1643761763551,0.07647694,38781.0,38775.0,0.02081419]
[1643761763552,0.14094058,38781.0,38775.0,0.02081419]
[1643761763746,0.0517,38780.0,38775.0,0.02081419]
[1643761764147,0.0517,38780.0,38775.0,0.0011]
[1643761765346,0.27979068,38777.0,38775.0,0.0011]
[1643761765547,0.0517,38780.0,38775.0,0.0011]
[1643761766347,0.0517,38780.0,38775.0,0.0111]
[1643761766550,0.2454797,38779.0,38775.0,0.0111]
[1643761766793,0.2454797,38779.0,38776.0,0.00145909]
[1643761766993,0.2293092,38779.0,38776.0,0.00145909]
[1643761767694,0.2293092,38779.0,38775.0,0.0111]
[1643761768097,0.2293092,38779.0,38776.0,0.00145909]
[1643761768894,0.2293092,38779.0,38775.0,0.0111]
[1643761769295,0.2293092,38779.0,38776.0,0.00145909]
[1643761770298,0.2293092,38779.0,38775.0,0.0111]
[1643761770546,0.2293092,38779.0,38776.0,0.00145909]
[1643761771345,0.01,38780.0,38775.0,0.0111]
[1643761771543,0.01,38780.0,38776.0,0.00145909]
[1643761771942,0.07647694,38781.0,38776.0,0.00145909]
[1643761772342,0.27440807,38780.0,38776.0,0.00145909]
[1643761772542,0.27440807,38780.0,38775.0,0.0111]
[1643761772741,0.28440807,38780.0,38776.0,0.00145908]
[1643761772942,0.01,38780.0,38776.0,0.00145908]
[1643761773142,0.01,38780.0,38779.0,2.68750858]
[1643761773841,0.07647694,38781.0,38779.0,2.68750858]
[1643761774602,0.07647694,38781.0,38778.0,0.00145902]
[1643761774801,0.26425726,38781.0,38778.0,0.00145902]
[1643761775001,0.26425726,38781.0,38775.0,0.0111]
[1643761775200,0.26665038,38781.0,38778.0,0.00145902]
[1643761775400,0.18849198,38781.0,38778.0,0.00145902]
[1643761775600,0.43,38782.0,38778.0,0.00145902]
[1643761775800,0.42,38782.0,38778.0,0.00145902]
[1643761776001,0.18984108,38781.0,38778.0,0.00145902]
[1643761776201,0.18984108,38781.0,38775.0,0.0111]
[1643761776402,0.08672999,38779.0,38778.0,0.001459]
[1643761777401,0.08672999,38779.0,38775.0,0.0111]
[1643761777602,0.08672999,38779.0,38777.0,0.00145906]
[1643761778158,0.01,38781.0,38777.0,0.00145906]
[1643761778557,0.01,38781.0,38777.0,0.064459]
[1643761778755,0.01,38781.0,38777.0,0.06591804]
[1643761778955,0.42,38782.0,38777.0,0.06591804]
[1643761779157,0.42,38782.0,38781.0,0.2295234]
[1643761780557,0.42,38782.0,38781.0,0.2939764]
[1643761780960,0.42,38782.0,38781.0,0.50161061]
[1643761781164,0.01,38784.0,38781.0,0.84891661]
[1643761781360,0.01,38784.0,38782.0,0.347306]
[1643761781559,0.01,38784.0,38781.0,0.50161061]
[1643761781797,0.08753819,38789.0,38785.0,0.06444]
[1643761783699,0.08753819,38789.0,38785.0,0.01]
[1643761784599,0.23229714,38788.0,38785.0,0.01]
[1643761784798,0.08753819,38789.0,38784.0,0.00072939]
[1643761785754,0.33486257,38789.0,38784.0,0.01]
[1643761785955,0.33486257,38789.0,38784.0,0.01072939]
[1643761786957,0.33486257,38789.0,38784.0,0.01]
[1643761787155,0.33486257,38789.0,38784.0,0.01072939]
[1643761787755,0.08753819,38789.0,38784.0,0.01072939]
[1643761788156,0.08753819,38789.0,38784.0,0.01]
[1643761788355,0.08753819,38789.0,38784.0,0.01145877]
[1643761788755,0.28437725,38788.0,38784.0,0.01145877]
[1643761789399,0.28437725,38788.0,38784.0,0.01]
[1643761789600,0.28437725,38788.0,38784.0,0.01145877]
[1643761789797,0.28430976,38788.0,38784.0,0.01145877]
[1643761790597,0.28430976,38788.0,38784.0,0.01]
[1643761790801,0.28430976,38788.0,38784.0,0.01145877]
[1643761791800,0.28430976,38788.0,38784.0,0.01]
[1643761792000,0.28430976,38788.0,38784.0,0.01145877]
[1643761793051,0.28430976,38788.0,38784.0,0.01]
[1643761793248,0.28430976,38788.0,38784.0,0.01145877]
[1643761794048,0.28430976,38788.0,38784.0,0.01134104]
[1643761794249,0.28430976,38788.0,38784.0,0.00988227]
[1643761794447,0.28430976,38788.0,38784.0,0.01134104]
[1643761795448,0.28430976,38788.0,38784.0,0.00988227]
[1643761795648,0.28430976,38788.0,38784.0,0.01134104]
[1643761796650,0.28430976,38788.0,38784.0,0.00988227]
[1643761796896,0.28430976,38788.0,38784.0,0.01134104]
[1643761797699,0.17908534,38787.0,38784.0,0.01134104]
[1643761797896,0.17908534,38787.0,38784.0,0.00988227]
[1643761798096,0.32908534,38787.0,38784.0,0.01134104]
[1643761798495,0.27468906,38786.0,38784.0,0.01134104]
[1643761798696,0.75716042,38785.0,38784.0,0.01134104]
[1643761798896,0.87163542,38785.0,38784.0,0.00145877]
[1643761799096,0.87163542,38785.0,38783.0,0.00011772]
[1643761799297,0.69022182,38784.0,38783.0,0.00157655]
[1643761799498,1.07619634,38784.0,38783.0,0.00157655]
[1643761799897,1.07619634,38784.0,38783.0,0.00145883]
[1643761800299,1.07619634,38784.0,38781.0,0.00988228]
[1643761800554,0.02755423,38783.0,38782.0,0.00145887]
[1643761800750,0.77634362,38783.0,38782.0,0.00145887]
[1643761801558,0.77634362,38783.0,38780.0,0.00011771]
[1643761801750,0.77634362,38783.0,38781.0,0.00145891]
[1643761801751,0.66584531,38782.0,38781.0,0.00145891]
[1643761801948,0.94570658,38782.0,38781.0,0.00145891]
[1643761802753,1.01018158,38782.0,38779.0,0.00988229]
[1643761802950,1.07465576,38782.0,38780.0,0.00145894]
[1643761803150,0.76902814,38781.0,38780.0,0.00145894]
[1643761803951,0.76902814,38781.0,38779.0,0.00145898]
[1643761804299,0.2421521,38779.0,38775.0,7.71e-06]
[1643761804499,0.2421521,38779.0,38773.0,0.0058368]
[1643761804500,0.0517,38778.0,38773.0,0.0058368]
[1643761804699,0.06448858,38777.0,38773.0,0.0058368]
[1643761804897,0.11448858,38777.0,38773.0,0.0147368]
[1643761805096,0.18068649,38776.0,38773.0,0.01]
[1643761805299,0.45,38774.0,38766.0,0.0022]
[1643761805498,0.45,38774.0,38766.0,0.0011]
[1643761805499,0.53238237,38767.0,38766.0,0.0011]
[1643761805697,0.34243293,38767.0,38766.0,0.0011]
[1643761806499,0.40692594,38767.0,38766.0,0.0011]
[1643761808355,0.61342703,38767.0,38766.0,0.0011]
[1643761809154,0.61342703,38767.0,38765.0,0.00254671]
[1643761809354,0.68138713,38766.0,38765.0,0.00254671]
[1643761809554,0.73308713,38766.0,38765.0,0.00254671]
[1643761809754,0.28308713,38766.0,38765.0,0.00254671]
[1643761809957,0.28308713,38766.0,38765.0,0.0011]
[1643761810156,0.44759013,38766.0,38764.0,0.00144675]
[1643761810361,0.66560212,38765.0,38764.0,0.00144675]
[1643761810556,0.71730212,38765.0,38764.0,0.00144675]
[1643761810755,0.76818212,38765.0,38764.0,0.00144675]
[1643761810955,1.41632336,38765.0,38763.0,0.0011]
[1643761811155,1.41632336,38765.0,38763.0,0.00254678]
[1643761812197,0.68104216,38764.0,38763.0,0.0011]
[1643761812400,0.76846863,38764.0,38763.0,0.0011]
[1643761812599,0.81846863,38764.0,38763.0,0.0011]
[1643761812799,0.96846863,38764.0,38763.0,0.0011]
[1643761813400,1.03297565,38764.0,38756.0,0.002]
[1643761813601,1.03297565,38764.0,38737.0,0.32117321]
[1643761813602,0.05,38756.0,38737.0,0.32117321]
[1643761813802,0.6459,38751.0,38732.0,0.1681]
[1643761814000,0.26730212,38750.0,38744.0,0.01]
[1643761814199,0.31730212,38750.0,38744.0,0.01]
[1643761814398,0.71264588,38749.0,38748.0,0.05327528]
[1643761814601,1.54473041,38749.0,38748.0,0.05327528]
[1643761815573,1.60926341,38749.0,38748.0,0.05327528]
[1643761818070,2.25516341,38749.0,38748.0,0.05327528]
[1643761819996,1.99251753,38749.0,38748.0,0.05327528]
[1643761820200,0.6976,38749.0,38748.0,0.05327528]
[1643761820403,0.2681268,38751.0,38748.0,0.05327528]
[1643761820407,0.01,38751.0,38748.0,0.05327528]
[1643761820801,0.06451526,38753.0,38748.0,0.00144014]
[1643761820999,0.34105259,38753.0,38750.0,0.02663764]
[1643761821301,0.07838205,38752.0,38750.0,0.02663764]
[1643761821901,0.48412858,38751.0,38750.0,0.02663764]
[1643761822101,0.53582858,38751.0,38750.0,0.02663764]
[1643761822501,0.7762717,38751.0,38750.0,0.02663764]
[1643761822703,0.8262717,38751.0,38750.0,0.02663764]
[1643761822900,1.56201915,38751.0,38750.0,0.02663764]
[1643761824357,1.56201915,38751.0,38727.0,0.383]
[1643761824358,0.064544,38744.0,38727.0,0.383]
[1643761824556,0.06454398,38740.0,38727.0,0.383]
[1643761824856,0.0517,38743.0,38729.0,0.22027632]
[1643761825055,0.0517,38743.0,38733.0,0.01]
[1643761825267,0.27269099,38737.0,38733.0,0.01]
[1643761825458,1.0959,38734.0,38733.0,0.01]
[1643761825659,0.45,38733.0,38730.0,0.00526028]
[1643761825860,0.0517,38732.0,38730.0,0.00526028]
[1643761826054,0.0517,38732.0,38730.0,0.02404531]
[1643761826256,0.69952997,38731.0,38730.0,0.02404531]
[1643761826456,0.75122997,38731.0,38730.0,0.00526028]
[1643761826657,0.95543457,38731.0,38728.0,0.01]
[1643761826899,0.2059046,38731.0,38729.0,0.00131501]
[1643761827100,0.14134643,38731.0,38729.0,0.00131501]
[1643761827501,0.0517,38731.0,38729.0,0.00131501]
[1643761827900,0.0517,38731.0,38729.0,0.22768071]
[1643761828700,0.1501776,38731.0,38728.0,0.01131502]
[1643761828901,0.21295635,38730.0,38727.0,0.01]
[1643761829101,0.45,38729.0,38715.0,0.05]
[1643761829301,0.21398694,38728.0,38722.0,0.00526092]
[1643761829500,0.5517,38729.0,38723.0,0.02168352]
[1643761829700,0.80431675,38729.0,38723.0,0.02168352]
[1643761829901,0.35863724,38727.0,38722.0,0.00526092]
[1643761830104,0.06456169,38726.0,38722.0,0.00526092]
[1643761830303,0.33024863,38726.0,38723.0,0.01]
[1643761830862,0.16626169,38726.0,38716.0,0.2142777]
[1643761831060,0.38024863,38726.0,38722.0,0.25773645]
[1643761831259,0.38024863,38726.0,38715.0,0.2961127]
[1643761831260,0.19254354,38725.0,38715.0,0.2961127]
[1643761831460,0.24424354,38725.0,38715.0,0.2961127]
[1643761831659,0.24424354,38725.0,38718.0,0.02012148]
[1643761831859,0.0517,38725.0,38719.0,0.01]
[1643761832059,0.0517,38725.0,38722.0,0.26265357]
[1643761832260,0.0517,38725.0,38723.0,0.22451138]
[1643761832461,0.064552,38734.0,38723.0,0.22451138]
[1643761832660,0.60032,38741.0,38723.0,0.22451138]
[1643761832661,0.06454425,38736.0,38723.0,0.22451138]
[1643761832860,0.01,38731.0,38723.0,0.22451138]
[1643761833060,0.00145218,38730.0,38723.0,0.22451138]
[1643761833259,0.21466346,38730.0,38723.0,0.22451138]
[1643761833464,0.08142285,38728.0,38723.0,0.22451138]
[1643761833661,0.08142285,38728.0,38720.0,0.00140828]
[1643761833860,0.1935119,38727.0,38719.0,0.01]
[1643761834059,0.1935119,38727.0,38723.0,0.01880916]
[1643761834297,0.00145226,38726.0,38723.0,0.01880916]
[1643761834899,0.00145226,38726.0,38720.0,0.21203434]
[1643761835098,0.08134109,38722.0,38720.0,0.21062606]
[1643761835298,0.08134109,38722.0,38720.0,0.21203434]
[1643761835498,0.46307334,38721.0,38720.0,0.00140828]
[1643761835698,0.25,38721.0,38720.0,0.00140828]
[1643761835899,0.3017,38721.0,38720.0,0.00140828]
[1643761836298,0.3017,38721.0,38714.0,0.42]
[1643761836498,0.5088549,38721.0,38719.0,0.00130715]
[1643761836700,0.51004118,38720.0,38719.0,0.00130715]
[1643761836900,0.56174118,38720.0,38719.0,0.00130715]
[1643761837201,0.36174118,38720.0,38719.0,0.00130715]
[1643761837700,0.36174118,38720.0,38718.0,0.00130717]
[1643761837701,0.57589341,38720.0,38718.0,0.00130717]
[1643761838057,0.36174118,38720.0,38718.0,0.00130717]
[1643761838250,0.0517,38720.0,38718.0,0.00130717]
[1643761838753,0.01,38722.0,38717.0,0.32287552]
[1643761838950,0.01,38722.0,38717.0,0.3141827]
[1643761839353,0.01,38722.0,38718.0,0.1]
[1643761839553,0.01,38722.0,38718.0,0.37417423]
[1643761839953,0.01,38722.0,38718.0,0.45402071]
[1643761840153,0.01,38722.0,38718.0,0.45532787]
[1643761840654,0.00782735,38722.0,38718.0,0.37548139]
[1643761841154,0.00782735,38722.0,38719.0,0.1]
[1643761841360,0.18807332,38734.0,38721.0,0.1]
[1643761841556,0.00584758,38740.0,38720.0,0.849006]
[1643761841557,0.00584758,38740.0,38723.0,0.1]
[1643761841799,0.01,38734.0,38732.0,0.27360702]
[1643761842201,0.1009805,38734.0,38725.0,0.1]
[1643761842501,0.1009805,38734.0,38725.0,0.1517]
[1643761842699,0.1009805,38734.0,38725.0,0.0517]
[1643761842900,0.1009805,38734.0,38722.0,0.06454]
[1643761842901,0.1009805,38734.0,38727.0,0.01]
[1643761843401,0.1009805,38734.0,38728.0,0.24440044]
[1643761844801,0.21307334,38733.0,38727.0,0.01]
[1643761845002,0.00145448,38733.0,38727.0,0.01]
[1643761845401,0.23805418,38733.0,38727.0,0.01]
[1643761845650,0.00145448,38733.0,38727.0,0.01]
[1643761846052,0.1009805,38734.0,38727.0,0.01]
[1643761846251,0.0014545,38732.0,38727.0,0.01]
[1643761847052,0.20170025,38733.0,38727.0,0.01]
[1643761847455,0.00145451,38731.0,38727.0,0.01]
[1643761848253,0.25170025,38733.0,38727.0,0.01]
[1643761848654,0.00145452,38731.0,38727.0,0.01]
[1643761849499,0.1009805,38734.0,38727.0,0.01]
[1643761849700,0.00145452,38731.0,38727.0,0.01]
[1643761850104,0.00145452,38731.0,38728.0,0.28502536]
[1643761850301,0.00145452,38731.0,38727.0,0.01]
[1643761850699,0.00900001,38734.0,38727.0,0.01]
[1643761850900,0.00145452,38731.0,38727.0,0.01]
[1643761851300,0.08903766,38730.0,38727.0,0.01]
[1643761852002,0.08903766,38730.0,38722.0,0.2815469]
[1643761852202,0.09049219,38730.0,38726.0,0.02164517]
[1643761852401,0.09049219,38730.0,38722.0,0.2815469]
[1643761852601,0.19399422,38729.0,38722.0,0.2815469]
[1643761852801,0.25854783,38729.0,38723.0,0.01]
[1643761853248,0.30854783,38729.0,38723.0,0.01]
[1643761853446,0.00145457,38728.0,38723.0,0.01]
[1643761853648,0.05315457,38728.0,38723.0,0.01]
[1643761853848,0.2387302,38727.0,38723.0,0.01]
[1643761854048,0.2887302,38727.0,38723.0,0.01]
[1643761854647,0.29018479,38727.0,38723.0,0.01]
[1643761854847,0.34188479,38727.0,38723.0,0.01]
[1643761855649,0.2904302,38727.0,38723.0,0.01]
[1643761855849,0.29188479,38727.0,38723.0,0.01]
[1643761856050,0.0818284,38724.0,38723.0,0.01]
[1643761856254,0.2517,38724.0,38723.0,0.01]